bitfinex-derivatives/quotes_BTCF0:USTF0_20250620
["timestamp","ask_amount","ask_price","bid_price","bid_amount"]
[1750390763723,1.70814539,104710.0,104700.0,0.2870058]
[1750390764420,1.45726398,104710.0,104700.0,0.2870058]
[1750390764625,1.12898539,104710.0,104700.0,0.53788721]
[1750390764926,1.12898539,104710.0,104700.0,0.2870058]
[1750390765124,1.12898539,104710.0,104700.0,0.53788721]
[1750390767330,1.12898539,104710.0,104700.0,0.2870058]
[1750390767532,1.12898539,104710.0,104700.0,0.53788721]
[1750390769521,0.87810398,104710.0,104700.0,0.53788721]
[1750390769726,0.69186901,104710.0,104700.0,0.53788721]
[1750390770926,0.76818539,104710.0,104700.0,0.53788721]
[1750390773127,1.12898539,104710.0,104700.0,0.53788721]
[1750390775838,1.13315946,104710.0,104700.0,0.53788721]
[1750390779640,1.05684308,104710.0,104700.0,0.53788721]
[1750390780933,1.13323237,104710.0,104700.0,0.53788721]
[1750390783739,1.05684308,104710.0,104700.0,0.53788721]
[1750390784540,1.05684308,104710.0,104700.0,0.2870058]
[1750390784736,1.13324429,104710.0,104700.0,0.53788721]
[1750390786843,1.13324429,104710.0,104700.0,0.2870058]
[1750390793348,1.13324429,104710.0,104700.0,0.1934058]
[1750390793648,1.19674429,104710.0,104700.0,0.1930058]
[1750390793948,1.19674429,104710.0,104700.0,0.1934058]
[1750390794148,1.19674429,104710.0,104700.0,0.2249058]
[1750390795149,1.19674429,104710.0,104700.0,0.2856058]
[1750390795349,1.12034308,104710.0,104700.0,0.2856058]
[1750390798853,1.12034308,104710.0,104700.0,0.0024]
[1750390799153,1.40382449,104710.0,104700.0,0.0024]
[1750390799352,1.15294308,104710.0,104700.0,0.0024]
[1750390799656,1.40382449,104710.0,104700.0,0.002]
[1750390799950,1.40382449,104710.0,104700.0,0.0024]
[1750390800146,1.49934731,104710.0,104700.0,0.0024]
[1750390800346,1.64445225,104710.0,104700.0,0.0014]
[1750390801053,1.64545225,104710.0,104700.0,0.0004]
[1750390802253,1.39457084,104710.0,104700.0,0.1914057]
[1750390803555,1.29904802,104710.0,104700.0,0.1914057]
[1750390804452,1.29904802,104710.0,104700.0,0.0004]
[1750390806339,1.10806042,104710.0,104700.0,0.0004]
[1750390806543,1.09721487,104710.0,104700.0,0.0004]
[1750390806743,1.11721487,104710.0,104700.0,0.0004]
[1750390807342,1.11721487,104710.0,104700.0,0.1914057]
[1750390807656,1.11721487,104710.0,104700.0,0.0004]
[1750390808449,1.11721487,104710.0,104700.0,0.0313]
[1750390808949,1.11721487,104710.0,104700.0,0.2223057]
[1750390813464,1.21273769,104710.0,104700.0,0.2223057]
[1750390814559,1.20856362,104710.0,104700.0,0.2223057]
[1750390814956,1.20856362,104710.0,104700.0,0.0313]
[1750390816459,1.20856362,104710.0,104700.0,0.2223057]
[1750390819363,1.17596362,104710.0,104700.0,0.2223057]
[1750390819562,1.17596362,104710.0,104700.0,0.2545057]
[1750390821659,1.17596362,104710.0,104700.0,0.2865057]
[1750390825761,0.75166362,104710.0,104700.0,0.53738711]
[1750390825966,0.75166362,104710.0,104700.0,1.14906852]
[1750390825967,0.50078221,104710.0,104700.0,1.14906852]
[1750390826167,0.6561408,104710.0,104700.0,1.14906852]
[1750390826364,0.6561408,104710.0,104700.0,0.89818711]
[1750390827068,0.60797395,104710.0,104700.0,0.89818711]
[1750390828975,0.68439385,104710.0,104700.0,0.89818711]
[1750390832177,0.68439385,104710.0,104700.0,0.53738711]
[1750390832178,0.60797395,104710.0,104700.0,0.53738711]
[1750390838080,0.35709254,104710.0,104700.0,0.53738711]
[1750390838281,0.60797395,104710.0,104700.0,0.53738711]
[1750390843982,0.54024107,104710.0,104700.0,0.53738711]
[1750390844679,0.28935966,104710.0,104700.0,0.53738711]
[1750390845086,0.28935966,104710.0,104700.0,0.89818711]
[1750390845282,0.09837206,104710.0,104700.0,1.86074852]
[1750390845487,0.002,104710.0,104700.0,1.86074852]
[1750390845879,0.00617407,104710.0,104700.0,1.86074852]
[1750390846380,0.00517407,104710.0,104700.0,1.86174852]
[1750390846988,0.001,104710.0,104700.0,1.86074852]
[1750390847285,0.001,104710.0,104700.0,1.86374852]
[1750390847489,0.73754153,104720.0,104710.0,0.1909875]
[1750390847684,0.85754153,104720.0,104710.0,0.89566891]
[1750390849585,0.85754153,104720.0,104710.0,0.89666891]
[1750390852192,0.85754153,104720.0,104710.0,0.6457875]
[1750390852493,0.85754153,104720.0,104710.0,0.89666891]
[1750390852494,1.10842294,104720.0,104710.0,0.89666891]
[1750390852690,0.85754153,104720.0,104710.0,0.89666891]
[1750390853184,0.85754153,104720.0,104710.0,0.53586891]
[1750390855396,0.95754153,104720.0,104710.0,0.53586891]
[1750390855992,0.85754153,104720.0,104710.0,0.53586891]
[1750390856384,0.85754153,104720.0,104710.0,0.2849875]
[1750390856587,0.85754153,104720.0,104710.0,0.53586891]
[1750390859396,0.88804153,104720.0,104710.0,0.53586891]
[1750390864102,0.8922156,104720.0,104710.0,0.53586891]
[1750390865300,0.8922156,104720.0,104710.0,0.89666891]
[1750390866701,0.8139707,104720.0,104710.0,0.89666891]
[1750390866900,0.7662261,104720.0,104710.0,0.89666891]
[1750390872405,0.7662261,104720.0,104710.0,0.53586891]
[1750390875406,0.68985404,104720.0,104710.0,0.53586891]
[1750390888810,0.86629419,104720.0,104710.0,0.53586891]
[1750390889717,0.89889419,104720.0,104710.0,0.53586891]
[1750390891106,0.82245404,104720.0,104710.0,0.53586891]
[1750390893311,0.72245404,104720.0,104710.0,0.53586891]
[1750390893507,1.07333545,104720.0,104710.0,0.2849875]
[1750390893809,1.07333545,104720.0,104710.0,0.2236875]
[1750390893810,1.15513545,104720.0,104710.0,0.2236875]
[1750390894919,1.15513545,104720.0,104710.0,0.2240875]
[1750390895418,1.15513545,104720.0,104710.0,0.47496891]
[1750390897822,1.00513545,104720.0,104710.0,0.47496891]
[1750390899115,1.00513545,104720.0,104710.0,0.2240875]
[1750390899320,1.00513545,104720.0,104710.0,0.47496891]
[1750390899523,0.75425404,104720.0,104710.0,0.50586891]
[1750390899820,0.75425404,104720.0,104710.0,0.53726891]
[1750390901024,0.83069688,104720.0,104710.0,0.53726891]
[1750390901622,0.79889688,104720.0,104710.0,0.53726891]
[1750390902824,0.54801547,104720.0,104710.0,0.53726891]
[1750390903025,0.79889688,104720.0,104710.0,0.53726891]
[1750390903627,0.61285542,104720.0,104710.0,0.55440103]
[1750390904918,0.53641258,104720.0,104710.0,0.55440103]
[1750390906526,0.61182068,104720.0,104710.0,0.55440103]
[1750390908923,0.68826423,104720.0,104710.0,0.55440103]
[1750390913723,0.65149016,104720.0,104710.0,0.55440103]
[1750390914628,0.57504661,104720.0,104710.0,0.55440103]
[1750390916328,0.65148878,104720.0,104710.0,0.55440103]
[1750390916630,0.57504661,104720.0,104710.0,0.55440103]
[1750390918330,0.65148868,104720.0,104710.0,0.55440103]
[1750390918832,0.57504661,104720.0,104710.0,0.55440103]
[1750390919933,0.65326887,104720.0,104710.0,0.55440103]
[1750390922234,0.72971092,104720.0,104710.0,0.55440103]
[1750390931050,0.65326887,104720.0,104710.0,0.55440103]
[1750390932346,0.40238746,104720.0,104710.0,0.55440103]
[1750390932546,0.65326887,104720.0,104710.0,0.55440103]
[1750390933148,0.08824996,104720.0,104710.0,0.91520103]
[1750390933346,0.37474208,104720.0,104710.0,0.91520103]
[1750390933539,0.53010067,104720.0,104710.0,0.92468408]
[1750390933942,0.53010067,104720.0,104710.0,0.91520103]
[1750390936448,0.27921926,104720.0,104710.0,0.91520103]
[1750390936749,0.53010067,104720.0,104710.0,0.91520103]
[1750390938845,0.27921926,104720.0,104710.0,0.91520103]
[1750390939148,0.53010067,104720.0,104710.0,0.91520103]
[1750390941055,0.60653142,104720.0,104710.0,0.91520103]
[1750390941947,0.35565001,104720.0,104710.0,0.91520103]
[1750390942150,0.60653142,104720.0,104710.0,0.91520103]
[1750390946455,0.35565001,104720.0,104710.0,0.91520103]
[1750390946654,0.60653142,104720.0,104710.0,0.91520103]
[1750390950458,0.60653142,104720.0,104710.0,0.66431962]
[1750390950661,0.60653142,104720.0,104710.0,0.91520103]
[1750390951251,0.60653142,104720.0,104710.0,0.66431962]
[1750390951453,0.60653142,104720.0,104710.0,1.49340103]
[1750390955060,0.60653142,104720.0,104710.0,1.24251962]
[1750390955262,0.60653142,104720.0,104710.0,1.49340103]
[1750390956863,0.60653142,104720.0,104710.0,0.91520103]
[1750390957061,0.60653142,104720.0,104710.0,1.49340103]
[1750390957257,0.92051283,104720.0,104710.0,1.49340103]
[1750390957460,1.06051283,104720.0,104710.0,0.81941962]
[1750390958167,1.06051283,104720.0,104710.0,0.81901962]
[1750390958465,1.06051283,104720.0,104710.0,0.81941962]
[1750390959068,0.92051283,104720.0,104710.0,0.81941962]
[1750390959270,1.07051283,104720.0,104710.0,0.81941962]
[1750390960269,1.14795193,104720.0,104710.0,0.81941962]
[1750390964372,1.14795193,104720.0,104710.0,1.07030103]
[1750390966874,1.14795193,104720.0,104710.0,1.10230103]
[1750390968276,0.99795193,104720.0,104710.0,1.10230103]
[1750390971879,0.99795193,104720.0,104710.0,1.13380103]
[1750390973480,0.96645193,104720.0,104710.0,1.13380103]
[1750390978080,0.93485193,104720.0,104710.0,1.13380103]
[1750390978383,0.68397052,104720.0,104710.0,1.13380103]
[1750390981288,0.60753977,104720.0,104710.0,1.13380103]
[1750390983388,0.35665836,104720.0,104710.0,1.49460103]
[1750390983690,0.60753977,104720.0,104710.0,1.49460103]
[1750390986793,0.35565198,104720.0,104710.0,1.49460103]
[1750390987794,0.16468268,104720.0,104710.0,1.49460103]
[1750390988792,0.35565098,104720.0,104710.0,1.49460103]
[1750390989998,0.16468268,104720.0,104710.0,1.49460103]
[1750390990390,0.35565088,104720.0,104710.0,1.49460103]
[1750390991000,0.16468268,104720.0,104710.0,1.49460103]
[1750390991589,0.35565098,104720.0,104710.0,1.49460103]
[1750390992499,0.27921826,104720.0,104710.0,1.49460103]
[1750390993296,0.35565098,104720.0,104710.0,1.49460103]
[1750390993809,0.35565098,104720.0,104710.0,1.24371962]
[1750390994002,0.35565098,104720.0,104710.0,1.49460103]
[1750390994212,0.16468268,104720.0,104710.0,1.49460103]
[1750390994507,0.08824996,104720.0,104710.0,1.49460103]
[1750390995208,0.33913137,104720.0,104710.0,1.49460103]
[1750390996707,0.08824996,104720.0,104710.0,1.49460103]
[1750391001104,0.27921826,104720.0,104710.0,1.49460103]
[1750391001305,0.08824996,104720.0,104710.0,1.49460103]
[1750391001812,0.27921826,104720.0,104710.0,1.49460103]
[1750391002413,0.08824996,104720.0,104710.0,1.49460103]
[1750391004813,0.33913137,104720.0,104710.0,1.49460103]
[1750391006609,0.53009967,104720.0,104710.0,1.49460103]
[1750391007017,0.33913137,104720.0,104710.0,1.49460103]
[1750391008315,0.53009967,104720.0,104710.0,1.49460103]
[1750391008715,0.08824996,104720.0,104710.0,1.49460103]
[1750391008919,0.33913137,104720.0,104710.0,1.49460103]
[1750391010314,0.08824996,104720.0,104710.0,1.49460103]
[1750391010514,0.33913137,104720.0,104710.0,1.49460103]
[1750391012420,0.33913137,104720.0,104710.0,1.62760103]
[1750391013411,0.53009967,104720.0,104710.0,1.62760103]
[1750391013814,0.33913137,104720.0,104710.0,1.62760103]
[1750391014209,0.53009967,104720.0,104710.0,1.62760103]
[1750391014409,0.53009967,104720.0,104710.0,1.04940103]
[1750391014618,0.53009967,104720.0,104710.0,1.62740103]
[1750391015417,0.60653239,104720.0,104710.0,1.62740103]
[1750391017018,0.53009967,104720.0,104710.0,1.62740103]
[1750391020828,0.35795977,104720.0,104710.0,1.62740103]
[1750391021017,0.45795977,104720.0,104710.0,1.62740103]
[1750391021218,0.53439249,104720.0,104710.0,1.26660103]
[1750391021419,0.34342419,104720.0,104710.0,1.62740103]
[1750391023030,0.17643272,104720.0,104710.0,1.62740103]
[1750391026332,0.17643272,104720.0,104710.0,1.61026891]
[1750391031023,0.36740112,104720.0,104710.0,1.61026891]
[1750391031234,0.2909684,104720.0,104710.0,1.61026891]
[1750391031622,0.2909684,104720.0,104710.0,0.53846891]
[1750391031829,0.54184981,104720.0,104710.0,1.61014891]
[1750391032833,0.61828253,104720.0,104710.0,1.61014891]
[1750391034035,0.36740112,104720.0,104710.0,1.61014891]
[1750391034230,0.61828253,104720.0,104710.0,1.61014891]
[1750391038441,0.61828253,104720.0,104710.0,0.6483875]
[1750391038641,0.68158253,104720.0,104710.0,1.47678891]
[1750391038840,0.68158253,104720.0,104710.0,1.47718891]
[1750391041445,0.60514981,104720.0,104710.0,1.47718891]
[1750391042748,0.57354981,104720.0,104710.0,1.47718891]
[1750391044746,0.64998253,104720.0,104710.0,1.47718891]
[1750391045051,0.57354981,104720.0,104710.0,1.47718891]
[1750391046953,0.57354981,104720.0,104710.0,1.2263075]
[1750391047252,0.57354981,104720.0,104710.0,0.6483875]
[1750391047443,0.90086394,104720.0,104710.0,0.6483875]
[1750391047645,0.93176394,104720.0,104710.0,0.5848875]
[1750391047961,0.93176394,104720.0,104710.0,0.8024875]
[1750391048159,1.06466394,104720.0,104710.0,0.8020875]
[1750391048351,1.06466394,104720.0,104710.0,0.8024875]
[1750391048554,0.96466394,104720.0,104710.0,0.8024875]
[1750391048755,0.96466394,104720.0,104710.0,0.1923875]
[1750391049556,0.96466394,104720.0,104710.0,0.1919875]
[1750391049856,0.96466394,104720.0,104710.0,0.1923875]
[1750391052162,1.04117704,104720.0,104710.0,0.1923875]
[1750391052469,0.53941422,104720.0,104710.0,0.1923875]
[1750391052656,1.04117704,104720.0,104710.0,0.2253875]
[1750391052964,1.04117704,104720.0,104710.0,0.2581875]
[1750391053262,0.79029563,104720.0,104710.0,0.2581875]
[1750391053464,0.75739563,104720.0,104710.0,0.50906891]
[1750391055064,0.59041047,104720.0,104710.0,0.50906891]
[1750391055261,0.67041047,104720.0,104710.0,0.50906891]
[1750391055768,0.67041047,104720.0,104710.0,0.54116891]
[1750391057167,0.67041047,104720.0,104710.0,0.2902875]
[1750391057368,0.67041047,104720.0,104710.0,0.54116891]
[1750391059970,0.67041047,104720.0,104710.0,0.2902875]
[1750391060168,0.67041047,104720.0,104710.0,0.54116891]
[1750391060667,0.92129188,104720.0,104710.0,0.54116891]
[1750391061265,0.92129188,104720.0,104710.0,0.49336891]
[1750391062771,1.03129188,104720.0,104710.0,0.2424875]
[1750391071284,1.03129188,104720.0,104710.0,0.1946875]
[1750391076484,0.46692906,104720.0,104710.0,0.44556891]
[1750391076676,0.71781047,104720.0,104710.0,0.44556891]
[1750391077384,0.64137775,104720.0,104710.0,0.44556891]
[1750391079986,0.89225916,104720.0,104710.0,0.44556891]
[1750391081281,0.96870279,104720.0,104710.0,0.44556891]
[1750391081587,0.96870279,104720.0,104710.0,0.2902875]
[1750391081882,0.96870279,104720.0,104710.0,0.54116891]
[1750391089789,0.96870279,104720.0,104710.0,0.2902875]
[1750391089991,0.96870279,104720.0,104710.0,0.2902867]
[1750391090392,1.32950279,104720.0,104710.0,0.2902867]
[1750391090592,1.35990279,104720.0,104710.0,0.2902867]
[1750391091287,1.35990279,104720.0,104710.0,0.0014]
[1750391091288,1.39565053,104720.0,104710.0,0.0014]
[1750391091481,0.1909866,104710.0,104700.0,0.3041488]
[1750391091684,1.1794823,104710.0,104700.0,0.3041488]
[1750391091888,1.7578023,104710.0,104700.0,0.2089876]
[1750391092391,1.7578023,104710.0,104700.0,0.0658]
[1750391092590,1.7901023,104710.0,104700.0,0.2568049]
[1750391092893,1.7901023,104710.0,104700.0,0.2578049]
[1750391093993,2.04098371,104710.0,104700.0,0.2578049]
[1750391094182,1.7901023,104710.0,104700.0,0.2574049]
[1750391094386,1.7901023,104710.0,104700.0,0.2578049]
[1750391095485,1.7901023,104710.0,104700.0,0.2895049]
[1750391099697,1.71368801,104710.0,104700.0,0.2895049]
[1750391101798,1.71368801,104710.0,104700.0,0.2416949]
[1750391104811,1.35288801,104710.0,104700.0,0.2416949]
[1750391104999,1.71368801,104710.0,104700.0,0.2416949]
[1750391105311,1.4628066,104710.0,104700.0,0.2416949]
[1750391105516,1.71368801,104710.0,104700.0,0.2731949]
[1750391107713,1.35288801,104710.0,104700.0,0.2731949]
[1750391107920,0.4609866,104710.0,104700.0,0.88487631]
[1750391108217,0.58186801,104710.0,104700.0,0.88487631]
[1750391109519,0.6582823,104710.0,104700.0,0.88487631]
[1750391112012,0.6582823,104710.0,104700.0,0.83706631]
[1750391114318,0.58186801,104710.0,104700.0,0.5861849]
[1750391114518,0.58186801,104710.0,104700.0,0.83706631]
[1750391115016,0.58186801,104710.0,104700.0,0.47626631]
[1750391115217,0.61196801,104710.0,104700.0,0.47586631]
[1750391115411,0.61196801,104710.0,104700.0,0.47626631]
[1750391117719,0.61196801,104710.0,104700.0,0.2253849]
[1750391117923,0.63196801,104710.0,104700.0,0.2253849]
[1750391120424,0.72749083,104710.0,104700.0,0.2253849]
[1750391121218,0.63196801,104710.0,104700.0,0.2253849]
[1750391122022,0.63196801,104710.0,104700.0,0.1775749]
[1750391124523,0.63196801,104710.0,104700.0,0.42845631]
[1750391124717,0.63196801,104710.0,104700.0,0.46085631]
[1750391126010,0.70840361,104710.0,104700.0,0.46085631]
[1750391127211,0.70840361,104710.0,104700.0,0.2099749]
[1750391129816,0.70840361,104710.0,104700.0,0.46085631]
[1750391132030,0.70840361,104710.0,104700.0,0.34788141]
[1750391132226,0.70840361,104710.0,104700.0,0.53888631]
[1750391132729,0.70840361,104710.0,104700.0,0.2880049]
[1750391135328,0.70840361,104710.0,104700.0,0.53888631]
[1750391135830,0.63196801,104710.0,104700.0,0.53888631]
[1750391136030,0.70840507,104710.0,104700.0,0.53888631]
[1750391136432,0.70840507,104710.0,104700.0,0.2880049]
[1750391136731,0.70840507,104710.0,104700.0,0.53888631]
[1750391138735,0.65830507,104710.0,104700.0,0.53888631]
[1750391142227,0.65830507,104710.0,104700.0,0.49107631]
[1750391142536,0.65830507,104710.0,104700.0,0.2401949]
[1750391142727,0.65830507,104710.0,104700.0,0.49107631]
[1750391146139,0.65830507,104710.0,104700.0,0.52117631]
[1750391148042,0.65830507,104710.0,104700.0,0.88197631]
[1750391151242,0.40742366,104710.0,104700.0,1.13285772]
[1750391151444,0.65830507,104710.0,104700.0,0.88197631]
[1750391152142,0.65830507,104710.0,104700.0,0.83416631]
[1750391156939,0.68920507,104710.0,104700.0,0.83416631]
[1750391159547,0.68920507,104710.0,104700.0,0.47336631]
[1750391159747,0.68920507,104710.0,104700.0,0.83416631]
[1750391159948,0.68920507,104710.0,104700.0,0.5832849]
[1750391160147,0.68920507,104710.0,104700.0,0.83416631]
[1750391161248,0.61276801,104710.0,104700.0,0.83416631]
[1750391162639,0.61276801,104710.0,104700.0,0.78635631]
[1750391163150,0.1709,104710.0,104700.0,1.61527772]
[1750391163348,1.43087133,104720.0,104710.0,0.1909867]
[1750391163548,0.98690851,104720.0,104710.0,0.44186811]
[1750391163736,1.08302745,104720.0,104710.0,0.39406811]
[1750391163943,1.08302745,104720.0,104710.0,0.42426811]
[1750391164449,1.03528355,104720.0,104710.0,0.78506811]
[1750391164646,1.03828355,104720.0,104710.0,0.78506811]
[1750391164852,0.71466291,104720.0,104710.0,0.78506811]
[1750391165052,0.4633815,104720.0,104710.0,0.78506811]
[1750391165452,0.71466291,104720.0,104710.0,0.78506811]
[1750391165652,0.79103632,104720.0,104710.0,0.78506811]
[1750391166045,0.4637815,104720.0,104710.0,0.78506811]
[1750391166245,0.71466291,104720.0,104710.0,0.78506811]
[1750391168760,0.1334,104720.0,104710.0,0.78506811]
[1750391168952,0.20973922,104720.0,104710.0,0.81676811]
[1750391169155,0.20933922,104720.0,104710.0,0.94968811]
[1750391169352,0.20973922,104720.0,104710.0,0.94968811]
[1750391170059,0.65058903,104720.0,104710.0,0.6988067]
[1750391170259,0.65058903,104720.0,104710.0,0.94968811]
[1750391170460,0.20773922,104720.0,104710.0,0.94968811]
[1750391170964,0.45862063,104720.0,104710.0,0.94968811]
[1750391171262,0.1314,104720.0,104710.0,0.94968811]
[1750391173257,0.73759126,104730.0,104720.0,0.1909685]
[1750391173456,0.86759126,104730.0,104720.0,0.80264991]
[1750391173756,1.01062382,104730.0,104720.0,0.75484991]
[1750391174461,1.01462382,104730.0,104720.0,0.75484991]
[1750391175563,0.76374241,104730.0,104720.0,0.75484991]
[1750391175764,1.01462382,104730.0,104720.0,0.75484991]
[1750391179768,1.01879789,104730.0,104720.0,0.75484991]
[1750391180570,1.01462382,104730.0,104720.0,0.75484991]
[1750391181657,1.01879789,104730.0,104720.0,0.39404991]
[1750391182570,1.13879789,104730.0,104720.0,0.1431685]
[1750391183669,1.13879789,104730.0,104720.0,0.0953685]
[1750391187472,1.06165867,104730.0,104720.0,0.0953685]
[1750391189179,1.06405867,104730.0,104720.0,0.0973685]
[1750391190674,1.67574008,104730.0,104720.0,0.1929685]
[1750391191277,1.67574008,104730.0,104720.0,0.1933685]
[1750391194091,1.67574008,104730.0,104720.0,0.1455685]
[1750391194597,1.67574008,104730.0,104720.0,0.1451685]
[1750391194801,1.67574008,104730.0,104720.0,0.1455685]
[1750391194986,1.7712629,104730.0,104720.0,0.1455685]
[1750391195790,0.1909685,104720.0,104710.0,0.0008]
[1750391195987,0.1910049,104700.0,104690.0,0.00255516]
[1750391196186,0.1910414,104680.0,104670.0,0.74019507]
[1750391196386,0.83280422,104680.0,104670.0,0.40665767]
[1750391196694,1.15074765,104680.0,104670.0,0.1910597]
[1750391196999,1.18154765,104680.0,104670.0,0.1914597]
[1750391197190,1.61875109,104680.0,104670.0,0.1914597]
[1750391197589,1.54234765,104680.0,104670.0,0.1914597]
[1750391197987,1.66234765,104680.0,104670.0,0.1914597]
[1750391198187,1.54234765,104680.0,104670.0,0.1914597]
[1750391199394,1.81211527,104680.0,104670.0,0.1914597]
[1750391200596,1.86917637,104680.0,104670.0,0.1914597]
[1750391201796,1.86917637,104680.0,104670.0,0.2241597]
[1750391202802,1.86917637,104680.0,104670.0,0.2541597]
[1750391203498,1.86917637,104680.0,104670.0,0.50504111]
[1750391206692,1.86917637,104680.0,104670.0,0.45722111]
[1750391209800,1.83837637,104680.0,104670.0,0.45722111]
[1750391211001,1.84255044,104680.0,104670.0,0.45722111]
[1750391213204,1.51435044,104680.0,104670.0,0.45722111]
[1750391213399,1.87515044,104680.0,104670.0,0.45722111]
[1750391215694,1.90555044,104680.0,104670.0,0.2063397]
[1750391216106,2.48455044,104680.0,104670.0,0.2063397]
[1750391216808,2.48455044,104680.0,104670.0,0.1585197]
[1750391218510,2.42748934,104680.0,104670.0,0.1585197]
[1750391221200,1.92572652,104680.0,104670.0,0.1585197]
[1750391221406,2.48458454,104680.0,104670.0,0.1585197]
[1750391222607,2.42748934,104680.0,104670.0,0.1585197]
[1750391224606,2.50389278,104680.0,104670.0,0.1585197]
[1750391227022,2.50389278,104680.0,104670.0,0.0631]
[1750391227219,2.50389278,104680.0,104670.0,0.2541597]
[1750391231819,2.50389278,104680.0,104670.0,0.1914597]
[1750391233320,2.30355152,104680.0,104670.0,0.1914597]
[1750391233519,2.49461122,104680.0,104670.0,0.1914597]
[1750391237727,2.49461122,104680.0,104670.0,0.1436397]
[1750391238721,1.2323641,104680.0,104670.0,0.1436397]
[1750391239026,0.6208199,104680.0,104670.0,0.39452111]
[1750391239227,0.87170131,104680.0,104670.0,0.48832111]
[1750391242923,0.87170131,104680.0,104670.0,0.84912111]
[1750391243626,0.87170131,104680.0,104670.0,0.48832111]
[1750391244426,0.66176033,104680.0,104670.0,0.48832111]
[1750391244632,0.69176033,104680.0,104670.0,0.48832111]
[1750391245330,0.94264174,104680.0,104670.0,0.45692111]
[1750391245532,1.03844174,104680.0,104670.0,0.2060397]
[1750391245726,1.03844174,104680.0,104670.0,0.2064397]
[1750391246431,1.10844174,104680.0,104670.0,0.2064397]
[1750391247826,1.10844174,104680.0,104670.0,0.1586197]
[1750391248638,1.10844174,104680.0,104670.0,0.40950111]
[1750391249034,0.85756033,104680.0,104670.0,0.40950111]
[1750391250838,0.85756033,104680.0,104670.0,0.1586197]
[1750391251038,1.10844174,104680.0,104670.0,0.40950111]
[1750391251239,1.0320383,104680.0,104670.0,0.40950111]
[1750391251837,0.78115689,104680.0,104670.0,0.40950111]
[1750391254343,0.85761197,104680.0,104670.0,0.40950111]
[1750391256440,0.85761197,104680.0,104670.0,0.1586197]
[1750391256639,0.85761197,104680.0,104670.0,0.40950111]
[1750391257041,0.60673056,104680.0,104670.0,0.40950111]
[1750391257242,0.85761197,104680.0,104670.0,0.40950111]
[1750391258146,0.85761197,104680.0,104670.0,0.31368141]
[1750391258346,0.85761197,104680.0,104670.0,0.50474111]
[1750391262948,0.85761197,104680.0,104670.0,0.2538597]
[1750391263148,0.85761197,104680.0,104670.0,0.50474111]
[1750391265253,0.60673056,104680.0,104670.0,0.86554111]
[1750391265453,0.85761197,104680.0,104670.0,0.86554111]
[1750391268147,0.85761197,104680.0,104670.0,0.81772111]
[1750391272064,0.85761197,104680.0,104670.0,0.45692111]
[1750391272254,0.85761197,104680.0,104670.0,0.44234111]
[1750391273162,1.10849338,104680.0,104670.0,0.44234111]
[1750391275262,0.60673056,104680.0,104670.0,0.44234111]
[1750391275566,1.10849338,104680.0,104670.0,0.44234111]
[1750391278174,0.85761197,104680.0,104670.0,0.44234111]
[1750391278465,0.85761197,104680.0,104670.0,0.39452111]
[1750391280264,1.10849338,104680.0,104670.0,0.39452111]
[1750391281268,0.85761197,104680.0,104670.0,0.39452111]
[1750391283071,0.8534379,104680.0,104670.0,0.39452111]
[1750391288470,0.8534379,104680.0,104670.0,0.34670111]
[1750391289367,0.20805508,104680.0,104670.0,0.70750111]
[1750391289669,0.13805508,104680.0,104670.0,0.80160111]
[1750391289869,0.13805508,104680.0,104670.0,1.37980111]
[1750391290572,0.73547925,104690.0,104680.0,0.1910405]
[1750391290773,0.98547925,104690.0,104680.0,0.45912693]
[1750391290972,1.12903786,104690.0,104680.0,0.39410191]
[1750391291374,1.20725673,104690.0,104680.0,0.39410191]
[1750391291875,1.07429673,104690.0,104680.0,0.39410191]
[1750391292062,1.07529673,104690.0,104680.0,0.39410191]
[1750391292875,0.53527748,104690.0,104680.0,0.39410191]
[1750391293068,0.83362258,104690.0,104680.0,0.39410191]
[1750391293267,0.83462258,104690.0,104680.0,0.42460191]
[1750391294267,0.83362258,104690.0,104680.0,0.42560191]
[1750391294879,0.83262258,104690.0,104680.0,0.42660191]
[1750391295077,0.83262258,104690.0,104680.0,0.43636242]
[1750391295276,0.83262258,104690.0,104680.0,0.42660191]
[1750391295477,0.86422258,104690.0,104680.0,0.42660191]
[1750391299380,0.86422258,104690.0,104680.0,0.43599373]
[1750391300678,0.94058628,104690.0,104680.0,0.43599373]
[1750391301071,0.94058628,104690.0,104680.0,0.38817373]
[1750391302277,0.94058628,104690.0,104680.0,0.37878191]
[1750391304482,0.86422258,104690.0,104680.0,0.37878191]
[1750391309877,0.86422258,104690.0,104680.0,0.0974005]
[1750391310078,0.86422258,104690.0,104680.0,0.34828191]
[1750391310681,0.86422258,104690.0,104680.0,0.0974005]
[1750391311186,0.86422258,104690.0,104680.0,0.44392191]
[1750391316982,0.86422258,104690.0,104680.0,0.1930405]
[1750391317182,0.86422258,104690.0,104680.0,0.44392191]
[1750391319486,0.94058628,104690.0,104680.0,0.44392191]
[1750391320993,0.94058628,104690.0,104680.0,0.39610191]
[1750391327892,0.86422258,104690.0,104680.0,0.39610191]
[1750391331109,0.86422258,104690.0,104680.0,0.34828191]
[1750391334797,0.86422258,104690.0,104680.0,0.38008191]
[1750391336605,0.67320028,104690.0,104680.0,0.74088191]
[1750391336805,0.86422198,104690.0,104680.0,0.77298191]
[1750391337304,0.86422198,104690.0,104680.0,0.5221005]
[1750391337504,0.86422198,104690.0,104680.0,0.77298191]
[1750391338191,0.3263637,104690.0,104680.0,1.02386332]
[1750391338390,0.14,104690.0,104680.0,1.05566332]
[1750391340304,0.14,104690.0,104680.0,1.18854332]
[1750391341300,0.2163637,104690.0,104680.0,1.54854332]
[1750391341503,0.14,104690.0,104680.0,1.64218332]
[1750391341698,0.14,104690.0,104680.0,1.65218332]
[1750391341900,0.14,104690.0,104680.0,1.61218332]
[1750391342305,0.14,104690.0,104680.0,1.28218332]
[1750391342606,0.14,104690.0,104680.0,1.29972868]
[1750391343795,0.14,104690.0,104680.0,1.67972868]
[1750391344002,0.14,104690.0,104680.0,1.29972868]
[1750391345011,0.14,104690.0,104680.0,1.65972868]
[1750391345210,0.14,104690.0,104680.0,1.29972868]
[1750391348109,0.14,104690.0,104680.0,1.67972868]
[1750391348411,0.14,104690.0,104680.0,1.29972868]
[1750391349109,0.14,104690.0,104680.0,1.60972868]
[1750391349313,0.14,104690.0,104680.0,1.29972868]
[1750391349506,0.1972608,104690.0,104680.0,1.29972868]
[1750391351610,0.1972608,104690.0,104680.0,1.23437332]
[1750391352315,0.1972608,104690.0,104680.0,1.25190998]
[1750391352706,0.1972608,104690.0,104680.0,1.82974998]
[1750391353012,0.2286608,104690.0,104680.0,1.82974998]
[1750391356712,0.2286608,104690.0,104680.0,1.48495998]
[1750391356904,0.2286608,104690.0,104680.0,2.20655998]
[1750391359115,0.2909608,104690.0,104680.0,2.20655998]
[1750391362016,0.2909608,104690.0,104680.0,1.90604191]
[1750391362203,0.2909608,104690.0,104680.0,2.15692332]
[1750391363617,0.2909608,104690.0,104680.0,1.43532332]
[1750391363819,0.2909608,104690.0,104680.0,1.79612332]
[1750391372119,0.2909608,104690.0,104680.0,1.74831332]
[1750391373719,0.13125724,104690.0,104680.0,1.2943605]
[1750391373921,0.00755724,104690.0,104680.0,1.81309074]